{"text_format":"3","workbook":"xlsx","n_sheets":1,"sheets":["所需药材明细"],"not_rendered":{"defined_names":1},"read":"whole","date_system":"1900"}

{"sheet":"所需药材明细","index":0,"n_rows":43,"n_cols":15,"rows_kept":43,"merged":[[0,0,1,14],[2,3,2,5],[2,8,2,12],[3,3,3,5],[3,8,3,12],[4,0,5,0],[4,3,4,5],[4,8,5,12],[5,3,5,5],[6,3,6,5],[6,8,6,12],[7,3,7,5],[7,8,7,12],[8,0,9,0],[8,3,8,5],[8,8,9,12],[9,3,9,5],[10,3,10,5],[10,8,10,12],[11,3,11,5],[11,8,11,12],[12,3,12,5],[12,8,12,12],[13,3,13,5],[13,8,13,12],[14,3,14,5],[14,8,14,12],[15,3,15,5],[15,8,15,12],[16,3,16,5],[16,8,16,12],[17,3,17,5],[17,8,17,12],[18,3,18,5],[18,8,18,12],[19,3,19,5],[19,8,19,12],[20,3,20,5],[20,8,20,12],[21,3,21,5],[21,8,21,12],[22,3,22,5],[22,8,22,12],[23,3,23,5],[23,8,23,12],[24,3,24,5],[24,8,24,12],[25,3,25,5],[25,8,25,12],[26,3,26,5],[26,8,26,12],[27,3,27,5],[27,8,27,12],[28,3,28,5],[28,8,28,12],[29,3,29,5],[29,8,29,12],[30,3,30,5],[30,8,30,12],[31,3,31,5],[31,8,31,12],[32,3,32,5],[32,8,32,12],[33,3,33,5],[33,8,33,12],[34,3,34,5],[34,8,34,12],[35,3,35,5],[35,8,35,12],[36,3,36,5],[36,8,36,12],[37,0,37,13],[38,0,38,14],[39,0,39,14],[40,0,40,14],[41,0,41,14],[42,0,42,14]]}
["黑龙江乌苏里江制药有限公司哈尔滨分公司2025年所需药材明细"]
[]
["序号","品名","规格","需购数量",null,null,"单位","送货地点","内控标准：供货方以下提供的药材必须符合需方内控标准，退换货产生的一切费用由供货方承担！！",{"$nulls":4},"单价（元/公斤）","合计（元/公斤）"]
[1,"天麻","统货",1440,null,null,"公斤","黑龙江省哈尔滨市平房区","水分不得过15%，总灰分不得过4.5%，二氧化硫残留量不得过200mg/kg,醇溶性浸出物不得少于15%，农药残留不得过定量限，按干燥品计，含天麻素和对羟基苯甲醇的总量不得少于0.35%",{"$nulls":5},{"$f":"N4*D4","v":{"v":0,"d":"0.00"}}]
[2,"白芷","统货",600,null,null,"公斤","黑龙江省哈尔滨市平房区","水分不得过14%，总灰分不得过6%，重金属及有害元素不得超标，二氧化硫含量不得过70mg/kg,农药残留不得过定量限，醇溶性浸出物不得少于15%，按干燥品计，欧前胡素含量不得少于0.2%",{"$nulls":5},{"$f":"N5*D5","v":{"v":0,"d":"0.00"}}]
[null,"白芷","统货",15680,null,null,"公斤","黑龙江省鸡西市虎林市",{"$nulls":6},{"v":0,"d":"0.00"}]
[3,"川芎","统货",21180,null,null,"公斤","黑龙江省鸡西市虎林市","水分不得过12%，总灰分不得过6%，酸不溶性灰分不得过2%，二氧化硫残留量不得过70mg/kg,农药残留不得过定量限，醇溶性浸出物不得少于12%，按干燥品计，含阿魏酸不得少于0.15%",{"$nulls":5},{"v":0,"d":"0.00"}]
[4,"荆芥","统货",1430,null,null,"公斤","黑龙江省鸡西市虎林市","水分不得过12%，总灰分不得过10%，酸不溶性灰分不得过3%，二氧化硫残留量不得过70mg/kg,农药残留不得过定量限，含挥发油不得少于0.6%（ml/g)，按干燥品计，含胡薄荷酮不得少于0.03%",{"$nulls":5},{"v":0,"d":"0.00"}]
[5,"当归","统货",1930,null,null,"公斤","黑龙江省鸡西市虎林市","水分不得过15%，总灰分不得过7%，酸不溶性灰分不得过2%，重金属及有害成分不得超标，二氧化硫残留量不得过70mg/kg,醇溶性浸出物不得少于45%，农药残留不得过定量限，本品含挥发油不得少于0.4%，按干燥品计，含阿魏酸不得少于0.06%",{"$nulls":5},{"v":0,"d":"0.00"}]
[null,"当归","统货",670,null,null,"公斤","黑龙江省哈尔滨市平房区",{"$nulls":6},{"v":0,"d":"0.00"}]
[6,"制川乌","中药饮片",9520,null,null,"公斤","黑龙江省鸡西市虎林市","水分不得过11%，二氧化硫残留量不得过70mg/kg,农药残留不得过定量限，含双酯型生物碱以乌头碱、次乌头碱和新乌头碱的总量计，不得过0.040％，含苯甲酰乌头原碱、苯甲酰次乌头原碱及苯甲酰新乌头原碱的总量应为0.070％～0.15％",{"$nulls":5},{"v":0,"d":"0.00"}]
[7,"山羊角","统货",15000,null,null,"公斤","黑龙江省鸡西市虎林市","性状，鉴别，【炮制】洗净，除去角塞，镑片或磨粉，杂质不得过5%。",{"$nulls":5},{"v":0,"d":"0.00"}]
[8,"瞿麦","统货",9980,null,null,"公斤","黑龙江省鸡西市虎林市","水分不得过12%，总灰分不得过10%，二氧化硫残留量不得过70mg/kg，农药残留不得过定量限。",{"$nulls":5},{"v":0,"d":"0.00"}]
[9,"滑石","统货",12220,null,null,"公斤","黑龙江省鸡西市虎林市","无伪品，杂质不得过3％",{"$nulls":5},{"v":0,"d":"0.00"}]
[10,"萹蓄","统货",13300,null,null,"公斤","黑龙江省鸡西市虎林市","水分不得过12%，总灰分不得过14％；酸不溶性灰分不得过4%，二氧化硫残留量不得过70mg/kg，农药残留不得过定量限，醇溶性浸出物不得少于8%，按干燥品计，杨梅苷不得少于0.040%",{"$nulls":5},{"v":0,"d":"0.00"}]
[11,"栀子","青果",9800,null,null,"公斤","黑龙江省鸡西市虎林市","水分不得过8.5%，总灰份不得过6％；二氧化硫残留量不得过70mg/kg，农药残留不得过定量限，重金属及有害元素不得过定量限，按干燥品计，含栀子苷不得少于5.5％（青果含量）（注：不要水栀子）",{"$nulls":5},{"v":0,"d":"0.00"}]
[12,"木通","统货",13530,null,null,"公斤","黑龙江省鸡西市虎林市","水分不得过10%，总灰分不得过6.5％；二氧化硫残留量不得过70mg/kg.农药残留不得过定量限，按干燥品计，含木通苯乙醇苷B不得少于0.2％（注;不要川木通、不能是关木通）",{"$nulls":5},{"v":0,"d":"0.00"}]
[13,"大黄","药用大黄",12000,null,null,"公斤","黑龙江省鸡西市虎林市","水分不得过15%，总灰分不得过10%，二氧化硫残留量不得过70mg/kg,水溶性浸出物不得少于25%，农药残留不得过定量限，按干燥品计算，含总蒽醌以芦荟大黄素、大黄酸、大黄素、大黄酚和大黄素甲醚的总量计，不得少于1.5％；含游离蒽醌以芦荟大黄素、大黄酸、大黄素、大黄酚和大黄素甲醚的总量计，不得少于0.25％(注：土大黄苷不得检出）",{"$nulls":5},{"v":0,"d":"0.00"}]
[14,"盐车前子","中药饮片",9760,null,null,"公斤","黑龙江省鸡西市虎林市","水分不得过10%，总灰分不得过9％；酸不溶性灰分不得过3%，膨胀度不低于3.0，二氧化硫残留量不得过70mg/kg.农药残留不得过定量限，按干燥品计，含京尼平苷酸不得少于0.60％，毛蕊花糖苷不得少于0.40％。（注：为炮制饮片，不能是原药材）",{"$nulls":5},{"v":0,"d":"0.00"}]
[15,"炙甘草","中药饮片",12200,null,null,"公斤","黑龙江省鸡西市虎林市","水分不得过10%，总灰分不得过5％；二氧化硫残留量不得过70mg/kg，农药残留不得过定量限，按干燥品计，含甘草苷不得少于0.63％，甘草酸不得少于1.5％（注：为炮制饮片，不能是原药材）",{"$nulls":5},{"v":0,"d":"0.00"}]
[16,"人参","统货",245,null,null,"公斤","黑龙江省鸡西市虎林市","水分不得过12%，总灰分不得过5%，重金属及有害元素不得超标，二氧化硫残留量不得过70mg/kg,农药残留不得过定量限，按干燥品计，含含人参皂苷Rg1和人参皂苷Re的总量不得少于0.6%，人参皂苷Rb1不得少于0.24%",{"$nulls":5},{"v":0,"d":"0.00"}]
[17,"五味子","统货",370,null,null,"公斤","黑龙江省鸡西市虎林市","杂质不得过1%，水分不得过16.0%，总灰分不得过7.0%，二氧化硫不得过70mg/kg，农药残留不得过定量限，不得检出胭脂红、赤藓红、酸性红73，本品含五味子醇甲不得少于0.8%",{"$nulls":5},{"v":0,"d":"0.00"}]
[18,"煅自然铜","中药饮片",320,null,null,"公斤","黑龙江省哈尔滨市平房区","【炮制】取净自然铜，照煅淬法（通则0213）煅至暗红，醋淬至表面呈黑褐色，光泽消失并酥松，微生物不得过定量限。",{"$nulls":5},{"v":0,"d":"0.00"}]
[19,"醋/制乳香","中药饮片",430,null,null,"公斤","黑龙江省哈尔滨市平房区","杂质：乳香珠不得过2%，原乳香不得过10%，二氧化硫残留不得过70mg/kg，不得检验出松香酸，农药残留不得过定量限，含量：索马里乳香含挥发油不得少于6.0%（ml/g），埃塞俄比亚乳香含挥发油不得少于2%，微生物限度不得过定量限。",{"$nulls":5},{"v":0,"d":"0.00"}]
[20,"醋没药","中药饮片",410,null,null,"公斤","黑龙江省哈尔滨市平房区","不得检出松香酸，农药残留不得过定量限，本品含挥发油不得少于2.6%，微生物限度不得过限定量。",{"$nulls":5},{"v":0,"d":"0.00"}]
[21,"红花","统货",960,null,null,"公斤","黑龙江省哈尔滨市平房区","杂质不得过2%，水分不得过13%，总灰分不得过15%，酸不溶性灰分不得过5%，二氧化硫残留量不得过70mg/kg,水溶性浸出物不得少于30%，不得检出偶氮玉红、日落黄、酸性红73、金橙Ⅱ、柠檬黄、胭脂红，农药残留不得过定量限，按干燥片计，含羟基红花黄色素A不得少于1.0%，含山柰素不得少于0.050%，吸光度不得少于0.20。",{"$nulls":5},{"v":0,"d":"0.00"}]
[22,"三七","统货",830,null,null,"公斤","黑龙江省哈尔滨市平房区","水分不得过14%，总灰分不得过6%，酸不溶性灰分不得过3%。二氧化硫不得过70mg/kg.重金属及有害元素不得超标，农药残留不得检出，醇溶性浸出物不得少于16%。按干燥品计，含人参皂苷Rg1、人参皂苷Rb1及三七皂苷R1的总量不得少于6.0%",{"$nulls":5},{"v":0,"d":"0.00"}]
[23,"续断","统货",350,null,null,"公斤","黑龙江省哈尔滨市平房区","水分不得过10%，总灰分不得过12%，酸不溶性灰分不得过3%，二氧化硫残留量不得过70mg/kg，农药残留不得检出，水溶性浸出物不得少于45%。按干燥品计，含川续断皂苷VI不得少于2.0%。",{"$nulls":5},{"v":0,"d":"0.00"}]
[24,"全蝎","统货",250,null,null,"公斤","黑龙江省哈尔滨市平房区","水分不得过20%，总灰分不得过17%，酸不溶性灰分不得过3%，二氧化硫残留量不得过70mg/kg,醇溶性浸出物不得少于18%，本品1000g含黄曲霉素B1不得过5ug，黄曲霉素G2、黄曲霉毒素G1、黄曲霉毒素B2和黄曲霉素B1的总量不得过10ug。",{"$nulls":5},{"v":0,"d":"0.00"}]
[25,"麸炒僵蚕","中药饮片",240,null,null,"公斤","黑龙江省哈尔滨市平房区","水份不得过13%，杂质不得过3%，总灰分不得过7%，酸不溶性灰分不得过2%，二氧化硫残留量不得过70mg/kg，本品每1000g含黄曲霉毒素B1不得过5UG,含黄曲霉毒素G2.黄曲霉毒素G1.黄曲霉毒素B2和黄曲霉毒素B1的总量不得过10UG，浸出物不得少于20.0%，微生物限度不得过限定量。",{"$nulls":5},{"v":0,"d":"0.00"}]
[26,"麸炒苍术","中药饮片",200,null,null,"公斤","黑龙江省哈尔滨市平房区","水分不得过10%，总灰分不得过5%，二氧化硫残留量不得过70mg/kg,农药残留不得检出，含苍术素(C13H10O)不得少于0.30％，微生物限度不得过限定量。",{"$nulls":5},{"v":0,"d":"0.00"}]
[27,"川牛膝","中药饮片",250,null,null,"公斤","黑龙江省哈尔滨市平房区","水分不得过16%，总灰分不得过8%，二氧化硫残留量不得过70mg/kg,农药残留不得检出，水溶性浸出物不得少于65%，按干燥品计，含杯苋甾酮不得少于0.05%",{"$nulls":5},{"v":0,"d":"0.00"}]
[28,"甘草","统货",140,null,null,"公斤","黑龙江省哈尔滨市平房区","水分不得过12%，总灰分不得过7%，酸不溶性灰分不得过2%，二氧化硫残留量不得过70mg/kg,农药残留不得检出，重金属及有害元素不得超标，按干燥品计，含甘草苷不得少于0.5%，甘草酸不得少于2.0%",{"$nulls":5},{"v":0,"d":"0.00"}]
[29,"土鳖虫","统货",370,null,null,"公斤","黑龙江省哈尔滨市平房区","杂质不得过5%，水分不得过10%，总灰分不得过13%，酸不溶性灰分不得过5.0%，水溶性浸出物不得少于22%，二氧化硫残留量不得过70mg/kg.本品每1000g含黄曲霉毒素B1不得过5UG,含黄曲霉毒素G2.黄曲霉毒素G1.黄曲霉毒素B2和黄曲霉毒素B1的总量不得过10UG",{"$nulls":5},{"v":0,"d":"0.00"}]
[30,"马钱子","士的宁：含量需要高含量",1100,null,null,"公斤","黑龙江省哈尔滨市平房区","水分不得过13%，总灰分不得过2%，二氧化硫残留量不得过70mg/kg,农药残留不得过定量限，黄曲霉毒素不得过限定量，按干燥品计，含士的宁应为1.2%~2.2%，马钱子碱不得少于0.8%",{"$nulls":5},{"v":0,"d":"0.00"}]
[31,"羌活","中药材",800,null,null,"公斤","黑龙江省鸡西市虎林市","总灰分不得过8%，酸不溶性灰分不得过3%，二氧化硫残留量不得过70mg/kg，农药残留不得过定量限，醇溶性浸出物不得少于15%，本品含挥发油不得少于1.4%（ml/g)，按干燥品计，含羌活醇和异欧前胡素的总量不得少于0.4%",{"$nulls":5},{"v":0,"d":"0.00"}]
[32,"拳参","中药材",850,null,null,"公斤","黑龙江省鸡西市虎林市","水分不得过15%，总灰分不得过9%，二氧化硫残留不得过70mg/kg,农药残留不得过定量限，醇溶性浸出物不得少于15%，按干燥品计算，含没食子酸（C7H6O5）不得少于0.12%",{"$nulls":5},{"v":0,"d":"0.00"}]
["合计：",{"$nulls":13},{"$f":"SUM(O4:O37)","v":{"v":0,"d":"0.00"}}]
["备注： 1、供应商需提供全套合规的公司资质，外包按标准要求有包装签（标签需标示：品名，规格，净重，产地，批号采收日期，供货单位等详细信息）；统一标准数量。"]
["           2、报价均含税（国家规定的增值税专用发票）含运费，送货上门。"]
["           3、报价需后附实物图片。"]
["           4、验收合格后三个月付款，支付方式：支付6个月银行承兑汇票。检测不合格无条件退换货。                "]
["联系人：闫女士   13604513381"]